bitfinex/quotes_ETHUSD_20250827
["timestamp","ask_amount","ask_price","bid_price","bid_amount"]
[1756287313537,0.108,4620.0,4619.9,2.91824901]
[1756287315136,0.108,4620.3,4619.9,0.9521049]
[1756287315434,0.108,4620.3,4620.2,2.16440846]
[1756287315637,0.1072,4620.3,4620.2,2.69251001]
[1756287315839,0.1072,4620.3,4620.2,3.44621001]
[1756287316141,0.1072,4620.3,4620.2,1.28180155]
[1756287316348,0.1072,4620.3,4620.2,0.7537]
[1756287316715,0.1072,4620.3,4620.2,2.91810846]
[1756287317731,0.1072,4620.3,4620.2,0.7537]
[1756287318152,2.27156162,4620.3,4620.2,0.3165]
[1756287318527,2.16447667,4620.1,4619.8,0.4572]
[1756287318729,0.108,4619.9,4619.8,0.02]
[1756287319235,0.108,4619.9,4619.8,0.3365]
[1756287319435,0.108,4619.9,4619.8,0.7737]
[1756287321555,3.0,4620.7,4619.8,1.0675322]
[1756287321756,0.108,4620.0,4619.8,0.7737]
[1756287322158,0.02030356,4619.9,4619.8,0.3365]
[1756287322363,0.108,4620.0,4619.8,0.3365]
[1756287322766,0.108,4620.0,4619.8,0.7737]
[1756287323060,0.108,4620.0,4619.9,0.4372]
[1756287323562,0.108,4620.0,4619.9,0.7537]
[1756287324860,0.108,4620.0,4619.9,2.91824901]
[1756287325169,0.108,4620.0,4619.9,0.7537]
[1756287327032,0.108,4620.0,4619.9,0.3165]
[1756287327654,0.108,4620.0,4619.9,0.7566]
[1756287331365,0.4078,4620.0,4619.8,0.02]
[1756287331754,0.650991,4620.3,4619.9,0.7414]
[1756287332067,9.15348148,4620.5,4619.9,0.3013]
[1756287332366,0.108,4620.0,4619.9,0.7414]
[1756287332772,0.108,4620.0,4619.9,2.90594901]
[1756287333537,0.108,4620.0,4619.9,0.3013]
[1756287334767,0.108,4620.0,4619.8,0.02]
[1756287337155,0.2998,4619.9,4619.8,0.02]
[1756287337345,2.94605257,4619.9,4619.8,0.02]
[1756287340184,0.651034,4620.1,4619.8,0.3213]
[1756287340353,0.108,4619.9,4619.8,2.48589586]
[1756287340945,0.108,4619.9,4619.8,2.92599586]
[1756287341370,0.108,4619.9,4619.8,3.80236424]
[1756287346166,0.108,4619.9,4619.8,3.06096424]
[1756287346372,0.108,4619.9,4619.8,3.69]
[1756287346682,0.108,4619.9,4619.8,5.85459586]
[1756287347584,0.108,4619.9,4619.8,6.15589586]
[1756287348083,0.108,4619.9,4619.8,6.59599586]
[1756287349292,0.108,4619.9,4619.8,7.47206255]
[1756287351903,0.108,4619.9,4619.8,6.59599586]
[1756287352302,0.108,4619.9,4619.8,2.92599586]
[1756287352477,0.108,4619.9,4619.8,6.59299586]
[1756287353383,4.665,4621.3,4620.6,2.16418219]
[1756287353606,7.4506,4621.4,4620.7,3.667]
[1756287353771,9.61448908,4621.4,4620.7,3.667]
[1756287353976,0.108,4620.8,4620.7,3.667]
[1756287355411,0.4078,4620.8,4620.7,3.667]
[1756287358904,0.108,4620.8,4620.7,5.83117425]
[1756287359074,0.108,4620.8,4620.7,3.9616]
[1756287359501,0.108,4620.8,4620.7,6.12577425]
[1756287359702,0.108,4620.8,4620.7,6.57257425]
[1756287361709,6.27997064,4621.8,4620.7,6.57257425]
[1756287361710,0.002,4621.9,4621.6,2.16370811]
[1756287362021,0.002,4621.9,4621.8,0.2946]
[1756287362712,0.002,4621.9,4621.8,2.90505918]
[1756287363190,0.002,4621.9,4621.8,3.39307723]
[1756287363797,0.002,4621.9,4621.8,3.41471382]
[1756287363997,0.002,4621.9,4621.8,3.6133818]
[1756287364196,0.002,4621.9,4621.8,3.59174521]
[1756287364624,0.0012,4621.9,4621.8,3.59174521]
[1756287364988,0.0012,4621.9,4621.8,3.39307723]
[1756287365182,0.0012,4621.9,4621.8,3.59122017]
[1756287365922,0.0012,4621.9,4621.8,12.74983864]
[1756287366131,1e-08,4621.9,4621.8,12.72820205]
[1756287368241,1e-08,4622.4,4622.3,11.30040701]
[1756287368539,1e-08,4622.4,4622.3,18.17494007]
[1756287368846,1e-08,4622.4,4622.3,19.00305407]
[1756287369138,1e-08,4622.4,4622.3,18.80491113]
[1756287369503,1e-08,4622.4,4622.3,19.00223632]
[1756287370118,1e-08,4622.4,4622.3,18.80491113]
[1756287370538,1e-08,4622.9,4622.8,2.16319113]
[1756287370739,1e-08,4622.9,4622.8,15.61765806]
[1756287370920,1e-08,4622.9,4622.8,16.33742615]
[1756287371244,0.022,4623.8,4623.2,2.16300397]
[1756287371245,1e-08,4623.3,4623.2,2.16300397]
[1756287371546,1e-08,4623.3,4623.2,6.82700397]
[1756287371847,1e-08,4623.3,4623.2,7.89560397]
[1756287372046,1e-08,4623.3,4623.2,7.60100397]
[1756287372260,0.28570001,4623.3,4623.2,1.772]
[1756287372557,0.73500001,4623.3,4623.2,5.329]
[1756287372713,0.73500001,4623.3,4622.5,3.82728876]
[1756287372913,0.108,4622.8,4622.6,3.665]
[1756287373132,0.735,4622.7,4622.6,3.665]
[1756287373636,0.735,4622.7,4622.1,3.665]
[1756287373842,0.46960356,4622.6,4622.1,3.665]
[1756287374045,1e-08,4623.3,4622.1,3.665]
[1756287374046,0.2857,4622.2,4622.1,3.665]
[1756287374843,0.3937,4622.2,4622.1,3.665]
[1756287375639,0.108,4622.2,4622.1,3.665]
[1756287375839,0.3937,4622.2,4622.1,3.665]
[1756287376043,0.843,4622.2,4622.1,3.665]
[1756287376961,0.3937,4622.2,4622.1,3.665]
[1756287377163,0.108,4622.2,4622.1,5.82851874]
[1756287377356,0.108,4622.2,4622.1,6.60804791]
[1756287378162,0.843,4622.2,4621.8,1.664]
[1756287378354,0.3937,4622.2,4621.9,3.665]
[1756287378662,0.4493,4622.1,4621.9,3.665]
[1756287378866,0.3937,4622.2,4621.9,3.665]
[1756287378867,0.108,4622.2,4621.9,3.665]
[1756287379633,0.2857,4622.0,4621.9,3.665]
[1756287380576,0.2857,4622.0,4621.9,5.82861236]
[1756287381275,0.108,4622.2,4621.9,5.82861236]
[1756287381680,0.108,4622.2,4621.9,3.665]
[1756287381879,0.108,4622.2,4621.9,5.82861118]
[1756287382031,0.2857,4622.0,4621.8,1.684]
[1756287382235,0.5573,4621.9,4621.8,0.02]
[1756287382469,0.57760356,4621.9,4621.8,0.02]
[1756287382670,3.02691592,4621.9,4621.8,0.02]
[1756287383191,3.02691592,4621.9,4621.8,1e-08]
[1756287383192,6.02691592,4621.9,4621.8,1e-08]
[1756287383336,6.02691592,4621.9,4620.8,0.02]
[1756287383337,2.16375281,4621.6,4620.8,0.02]
[1756287383531,2.16408059,4620.9,4620.8,0.02]
[1756287383814,2.47008415,4620.9,4620.8,0.02]
[1756287384092,5.91938415,4620.9,4620.8,0.02]
[1756287384236,5.89908059,4620.9,4620.8,0.02]
[1756287386067,9.56808059,4620.9,4620.8,0.02]
[1756287388645,5.44978059,4620.9,4620.8,0.02]
[1756287389086,9.11598059,4620.9,4620.8,0.02]
[1756287389283,9.57638059,4620.9,4620.8,0.02]
[1756287389579,5.90938059,4620.9,4620.8,0.02]
[1756287393496,6.01738059,4620.9,4620.8,0.02]
[1756287394007,9.68338059,4620.9,4620.8,0.02]
[1756287395060,10.11998059,4620.9,4620.8,0.02]
[1756287395486,17.10918059,4620.9,4620.8,0.02]
[1756287398033,13.44318059,4620.9,4620.8,0.02]
[1756287398183,17.11018059,4620.9,4620.8,0.02]
[1756287403112,16.64978059,4620.9,4620.8,0.02]
[1756287403807,12.98278059,4620.9,4620.8,0.02]
[1756287404181,16.64978059,4620.9,4620.8,0.02]
[1756287407526,12.69788059,4620.9,4620.8,0.3341]
[1756287407706,16.36488059,4620.9,4620.8,0.02]
[1756287407902,16.66738059,4620.9,4620.8,0.02]
[1756287409007,16.66738059,4620.9,4620.8,0.021]
[1756287409716,16.66938059,4620.9,4620.8,0.021]
[1756287413425,16.66858059,4620.9,4620.8,0.021]
[1756287415463,16.36608059,4620.9,4620.8,0.3351]
[1756287415645,16.36608059,4620.9,4620.8,0.021]
[1756287416314,12.69908059,4620.9,4620.8,0.021]
[1756287416516,16.36608059,4620.9,4620.8,0.3351]
[1756287416736,15.92948059,4620.9,4620.8,0.7717]
[1756287417344,15.82148059,4620.9,4620.8,0.7717]
[1756287417663,15.92948059,4620.9,4620.8,0.7717]
[1756287417851,5.27328059,4620.9,4620.8,0.7717]
[1756287418155,8.94028059,4620.9,4620.8,0.7717]
[1756287420163,0.11,4620.9,4620.8,0.7717]
[1756287420529,0.11,4620.9,4620.8,1.06528802]
[1756287420750,0.11,4620.9,4620.8,0.7717]
[1756287421140,3.777,4620.9,4620.8,0.7717]
[1756287421770,0.11,4620.9,4620.8,0.7717]
[1756287422063,0.11,4620.9,4620.8,2.93582742]
[1756287423567,0.002,4620.9,4620.8,2.93582742]
[1756287423762,0.002,4620.9,4620.8,3.44583202]
[1756287424265,0.002,4620.9,4620.8,1.2817046]
[1756287424469,0.002,4620.9,4620.8,0.7717]
[1756287424833,0.002,4620.9,4620.8,2.93582742]
[1756287425234,0.002,4620.9,4620.8,0.7717]
[1756287425472,0.11,4620.9,4620.8,0.7717]
[1756287428504,17.39954387,4620.9,4620.8,0.021]
[1756287428794,17.39954387,4620.9,4620.3,0.001]
[1756287428795,2.16431477,4620.4,4620.3,0.001]
[1756287428959,14.99647805,4620.4,4620.3,0.001]
[1756287429160,15.71247449,4620.4,4620.3,0.001]
[1756287429360,9.56661477,4620.4,4620.3,0.001]
[1756287430155,5.90061477,4620.4,4620.3,0.001]
[1756287430356,9.56561477,4620.4,4620.3,0.001]
[1756287431084,9.56561477,4620.4,4620.3,1e-08]
[1756287431085,10.04121536,4620.4,4620.3,1e-08]
[1756287431478,9.72987225,4620.4,4620.3,1e-08]
[1756287433099,9.12941477,4620.4,4620.3,1e-08]
[1756287433296,9.56661477,4620.4,4620.3,1e-08]
[1756287434199,10.22661477,4620.4,4620.3,1e-08]
[1756287434410,2.16448015,4620.1,4619.8,1e-08]
[1756287434617,5.16454901,4619.9,4619.8,1e-08]
[1756287434903,6.07422572,4619.9,4619.8,1e-08]
[1756287435061,6.16105472,4619.9,4619.8,1e-08]
[1756287435266,6.59825472,4619.9,4619.8,1e-08]
[1756287435970,7.25825472,4619.9,4619.8,1e-08]
[1756287436164,2.16473644,4619.5,4619.3,1e-08]
[1756287436402,3.99764667,4619.4,4619.3,1e-08]
[1756287436617,9.46152997,4619.4,4619.3,1e-08]
[1756287436910,9.87842641,4619.4,4619.3,1e-08]
[1756287437903,9.87762641,4619.4,4619.3,1e-08]
[1756287438420,9.87762641,4619.4,4618.9,1e-08]
[1756287438421,2.16497077,4619.0,4618.9,1e-08]
[1756287438574,2.16497077,4619.0,4618.3,1e-08]
[1756287438575,2.16518113,4618.6,4618.3,1e-08]
[1756287438774,18.91455471,4618.4,4618.3,1e-08]
[1756287439008,19.33389782,4618.4,4618.3,1e-08]
[1756287439216,23.43809782,4618.4,4618.3,1e-08]
[1756287439774,23.00089782,4618.4,4618.3,1e-08]
[1756287439998,23.12675471,4618.4,4618.3,1e-08]
[1756287440771,19.45975471,4618.4,4618.3,1e-08]
[1756287441003,23.12675471,4618.4,4618.3,1e-08]
[1756287441828,19.78359782,4618.4,4618.3,1e-08]
[1756287441996,23.01339782,4618.4,4618.3,1e-08]
[1756287442915,23.53745182,4618.4,4618.3,1e-08]
[1756287443310,26.85965182,4618.4,4618.3,1e-08]
[1756287443514,30.52665182,4618.4,4618.3,1e-08]
[1756287443735,2.82548647,4617.9,4617.8,1e-08]
[1756287444033,2.16595551,4616.9,4616.6,0.4635]
[1756287444218,6.96025907,4616.9,4616.6,0.4635]
[1756287444420,8.94195551,4616.9,4616.8,0.7744]
[1756287444998,5.27395551,4616.9,4616.8,0.7744]
[1756287445242,8.94095551,4616.9,4616.8,0.7744]
[1756287445612,6.775,4616.9,4616.8,0.7744]
[1756287445834,5.27395551,4616.9,4616.8,0.7744]
[1756287446214,3.108,4616.9,4616.8,0.7744]
[1756287447418,6.775,4616.9,4616.8,0.7744]
[1756287447637,3.775,4616.9,4616.8,0.7744]
[1756287447935,5.94095551,4616.9,4616.8,0.3109]
[1756287448125,3.775,4616.9,4616.8,0.7788]
[1756287448306,3.777,4616.9,4616.8,0.7788]
[1756287449049,5.94295551,4616.9,4616.8,0.7788]
[1756287451319,5.94295551,4616.9,4616.8,0.021]
[1756287451320,15.39736748,4616.9,4616.8,0.021]
[1756287451554,15.28936748,4616.9,4616.8,0.021]
[1756287453136,15.28936748,4616.9,4616.8,1e-08]
[1756287453335,5.46495551,4616.9,4616.8,1e-08]
[1756287453568,8.84995551,4616.9,4616.8,0.31010001]
[1756287453940,9.14895551,4616.9,4616.8,1e-08]
[1756287454378,5.46495551,4616.9,4616.8,1e-08]
[1756287454578,8.85095551,4616.9,4616.8,0.31010001]
[1756287455174,8.85095551,4616.9,4616.8,1e-08]
[1756287455860,0.4679,4617.2,4616.8,0.77800001]
[1756287456172,0.4679,4617.2,4616.9,0.4679]
[1756287456373,0.48820356,4617.2,4616.9,0.4679]
[1756287456570,3.689,4617.2,4617.1,0.3101]
[1756287456772,5.85481477,4617.2,4617.1,0.778]
[1756287457354,2.16575739,4617.4,4617.1,0.778]
[1756287457580,3.0,4617.7,4617.2,0.4679]
[1756287457786,5.8585922,4617.7,4617.2,0.4679]
[1756287457987,2.16535384,4618.2,4617.6,0.3101]
[1756287458189,3.0,4618.0,4617.7,0.4679]
[1756287458360,2.16554166,4617.8,4617.7,0.4679]
[1756287458889,2.16554166,4617.8,4617.7,0.778]
[1756287459798,2.16595551,4616.9,4616.8,1e-08]
[1756287459977,8.85895551,4616.9,4616.8,1e-08]
[1756287460290,8.86795551,4616.9,4616.8,1e-08]
[1756287460677,5.46495551,4616.9,4616.8,1e-08]
[1756287460880,9.16695551,4616.9,4616.8,1e-08]
[1756287461063,9.59595551,4616.9,4616.8,1e-08]
[1756287461459,8.97595551,4616.9,4616.8,1e-08]
[1756287462194,5.27395551,4616.9,4616.8,1e-08]
[1756287462391,8.97515551,4616.9,4616.8,1e-08]
[1756287463478,9.27415551,4616.9,4616.8,1e-08]
[1756287463977,5.57215551,4616.9,4616.8,1e-08]
[1756287464282,9.27315551,4616.9,4616.8,1e-08]
[1756287464996,22.74366056,4616.9,4616.8,1e-08]
[1756287465156,5.57215551,4616.9,4616.8,1e-08]
[1756287465360,9.74905551,4616.9,4616.8,1e-08]
[1756287465775,10.17805551,4616.9,4616.8,1e-08]
[1756287468704,6.46905551,4616.9,4616.8,1e-08]
[1756287468903,10.17605551,4616.9,4616.8,1e-08]
[1756287469099,6.46905551,4616.9,4616.8,1e-08]
[1756287469271,9.74605551,4616.9,4616.8,1e-08]
[1756287469466,10.17505551,4616.9,4616.8,1e-08]
[1756287469798,9.74605551,4616.9,4616.8,1e-08]
[1756287470096,6.04005551,4616.9,4616.8,1e-08]
[1756287470321,9.74505551,4616.9,4616.8,1e-08]
[1756287471198,6.04005551,4616.9,4616.8,1e-08]
[1756287471528,9.74505551,4616.9,4616.8,1e-08]
[1756287471994,5.84860412,4616.9,4616.8,1e-08]
[1756287472191,9.08470412,4616.9,4616.8,0.31010001]
[1756287472393,5.97615551,4616.9,4616.8,0.31010001]
[1756287472598,2.27315551,4616.9,4616.8,0.77800001]
[1756287472924,8.99745907,4616.9,4616.8,0.77800001]
[1756287473096,8.97715551,4616.9,4616.8,0.77800001]
[1756287473695,6.812,4616.9,4616.8,0.77800001]
[1756287474026,8.97795551,4616.9,4616.8,0.77800001]
[1756287474592,2.27395551,4616.9,4616.8,0.77800001]
[1756287474793,5.97695551,4616.9,4616.8,0.77800001]
[1756287475603,8.97695551,4616.9,4616.8,0.31010001]
[1756287476120,8.97595551,4616.9,4616.8,0.31010001]
[1756287478208,8.97595551,4616.9,4616.8,0.28940001]
[1756287478408,9.28385551,4616.9,4616.8,1e-08]
[1756287478608,8.97595551,4616.9,4616.8,0.28940001]
[1756287478814,8.97595551,4616.9,4616.8,0.76190001]
[1756287480305,8.97595551,4616.9,4616.8,0.28940001]
[1756287482534,8.97595551,4616.9,4616.8,1e-08]
[1756287483112,8.97595551,4616.9,4616.8,0.28940001]
[1756287483848,8.97595551,4616.9,4616.8,1e-08]
[1756287484054,9.28385551,4616.9,4616.8,1e-08]
[1756287484454,8.97595551,4616.9,4616.8,1e-08]
[1756287484916,8.97595551,4616.9,4616.8,0.28940001]
[1756287485327,15.96515551,4616.9,4616.8,0.28940001]
[1756287485529,15.96515551,4616.9,4616.8,1e-08]
[1756287486533,16.27305551,4616.9,4616.8,1e-08]
[1756287486957,16.27225551,4616.9,4616.8,1e-08]
[1756287487466,16.70635551,4616.9,4616.8,1e-08]
[1756287487853,13.00435551,4616.9,4616.8,1e-08]
[1756287488052,16.69935551,4616.9,4616.8,1e-08]
[1756287488456,16.26425551,4616.9,4616.8,1e-08]
[1756287488766,15.95635551,4616.9,4616.8,0.28940001]
[1756287488936,15.95635551,4616.9,4616.8,1e-08]
[1756287489137,16.26425551,4616.9,4616.8,1e-08]
[1756287490978,15.95435551,4616.9,4616.8,1e-08]
[1756287491147,16.26225551,4616.9,4616.8,1e-08]
[1756287492571,16.26125551,4616.9,4616.8,1e-08]
[1756287492761,16.73375551,4616.9,4616.8,1e-08]
[1756287494175,17.16785551,4616.9,4616.8,1e-08]
[1756287494472,10.5697,4616.9,4616.8,0.28940001]
[1756287494674,10.5697,4616.9,4616.8,0.76190001]
[1756287495244,7.5697,4616.9,4616.8,0.76190001]
[1756287495442,10.5697,4616.9,4616.8,0.76190001]
[1756287496065,12.73565551,4616.9,4616.8,0.76190001]
[1756287496543,10.5697,4616.9,4616.8,0.76190001]
[1756287497339,16.42365551,4616.9,4616.8,0.76190001]
[1756287497672,16.42365551,4616.9,4616.8,0.28940001]
[1756287497866,16.42365551,4616.9,4616.8,0.76190001]
[1756287498054,16.42565551,4616.9,4616.8,0.76190001]
[1756287498256,14.2597,4616.9,4616.8,0.76190001]
[1756287499273,10.5717,4616.9,4616.8,0.76190001]
[1756287499882,12.73765551,4616.9,4616.8,0.76190001]
[1756287501779,10.5717,4616.9,4616.8,0.76190001]
[1756287502381,12.26515551,4616.9,4616.8,0.76190001]
[1756287502959,12.57305551,4616.9,4616.8,1e-08]
[1756287503156,12.26515551,4616.9,4616.8,1e-08]
[1756287503361,15.94815551,4616.9,4616.8,0.28940001]
[1756287503884,15.94815551,4616.9,4616.8,0.76190001]
[1756287504286,12.26515551,4616.9,4616.8,0.76190001]
[1756287504446,15.94815551,4616.9,4616.8,0.76190001]
[1756287504646,12.26515551,4616.9,4616.8,1e-08]
[1756287504847,12.91659951,4616.9,4616.8,0.28940001]
[1756287505553,12.26515551,4616.9,4616.8,0.28940001]
[1756287505887,12.73765551,4616.9,4616.8,0.28940001]
[1756287506466,10.5717,4616.9,4616.8,0.28940001]
[1756287506677,12.26515551,4616.9,4616.8,0.76190001]
[1756287506879,12.26515551,4616.9,4616.8,0.28940001]
[1756287507286,16.14505551,4616.9,4616.8,1e-08]
[1756287507456,16.60535551,4616.9,4616.8,1e-08]
[1756287508214,14.59135551,4616.9,4616.8,1e-08]
[1756287508399,18.28135551,4616.9,4616.8,1e-08]
[1756287508800,14.59135551,4616.9,4616.8,1e-08]
[1756287509004,18.28035551,4616.9,4616.8,1e-08]
[1756287509403,14.59135551,4616.9,4616.8,1e-08]
[1756287509711,18.70985551,4616.9,4616.8,1e-08]
[1756287510074,19.00908911,4616.9,4616.8,1e-08]
[1756287510273,19.00908911,4616.9,4616.3,0.001]
[1756287510274,2.1661901,4616.4,4616.3,0.001]
[1756287510502,15.03096201,4616.4,4616.3,0.001]
[1756287510714,15.76245845,4616.4,4616.3,0.001]
[1756287511422,15.76165845,4616.4,4616.3,0.001]
[1756287511876,11.61335845,4616.4,4616.3,0.001]
[1756287512077,15.30035845,4616.4,4616.3,0.001]
[1756287512809,15.72985845,4616.4,4616.3,0.001]
[1756287514117,16.19015845,4616.4,4616.3,0.001]
[1756287514674,15.72985845,4616.4,4616.3,0.001]
[1756287516125,15.72685845,4616.4,4616.3,0.001]
[1756287516302,16.18715845,4616.4,4616.3,0.001]
[1756287516631,16.18715845,4616.4,4615.8,0.021]
[1756287516632,2.16642474,4615.9,4615.8,0.021]
[1756287516816,16.69319665,4615.9,4615.8,0.021]
[1756287517111,17.42469309,4615.9,4615.8,0.021]
[1756287517316,17.98219309,4615.9,4615.8,0.021]
[1756287517493,13.83789309,4615.9,4615.8,0.021]
[1756287517694,17.52189309,4615.9,4615.8,0.021]
[1756287518087,13.83789309,4615.9,4615.8,0.021]
[1756287518286,17.52089309,4615.9,4615.8,0.021]
[1756287520129,17.51989309,4615.9,4615.8,0.021]
[1756287520288,11.07292474,4615.9,4615.8,0.021]
[1756287520692,11.07292474,4615.9,4615.8,0.3144]
[1756287520989,11.07492474,4615.9,4615.8,0.021]
[1756287521213,11.36642474,4615.9,4615.8,0.021]
[1756287521720,12.12595834,4615.9,4615.8,0.021]
[1756287522019,18.65485834,4615.9,4615.8,0.021]
[1756287522421,18.65385834,4615.9,4615.8,0.021]
[1756287522607,19.11415834,4615.9,4615.8,0.021]
[1756287523424,18.35462474,4615.9,4615.8,0.021]
[1756287523628,2.16659316,4615.6,4614.8,1e-08]
[1756287523804,3.0,4614.8,4613.8,0.02]
[1756287524142,11.32383218,4613.9,4613.8,0.02]
[1756287524289,8.86436383,4613.9,4613.8,0.02]
[1756287524491,9.06680111,4613.9,4613.8,0.3134]
[1756287524727,3.698,4614.0,4613.8,0.3134]
[1756287524931,2.16736383,4613.9,4613.8,0.7429]
[1756287525243,2.16736383,4613.9,4613.8,0.02]
[1756287525244,11.52624655,4613.9,4613.8,0.02]
[1756287525408,2.36977446,4613.9,4613.8,0.3134]
[1756287525587,9.07077446,4613.9,4613.8,0.7429]
[1756287526597,8.86836383,4613.9,4613.8,0.7429]
[1756287526798,5.81925083,4613.9,4613.8,0.7429]
[1756287527125,9.52325083,4613.9,4613.8,0.7429]
[1756287527329,9.52325083,4613.9,4613.8,0.3134]
[1756287528110,9.52125083,4613.9,4613.8,0.3134]
[1756287528327,9.52125083,4613.9,4613.8,0.7429]
[1756287528729,9.52125083,4613.9,4613.8,0.3134]
[1756287528911,9.52125083,4613.9,4613.8,0.7429]
[1756287529107,5.81925083,4613.9,4613.8,0.7429]
[1756287529305,9.52025083,4613.9,4613.8,0.3134]
[1756287530197,5.81925083,4613.9,4613.8,0.3134]
[1756287530432,9.52025083,4613.9,4613.8,0.3134]
[1756287530809,5.81925083,4613.9,4613.8,0.3134]
[1756287531009,9.52025083,4613.9,4613.8,0.3134]
[1756287531258,0.651887,4613.9,4613.8,0.3144]
[1756287531540,3.0,4614.2,4613.8,0.7439]
[1756287531738,3.651778,4614.2,4613.9,0.4295]
[1756287531906,5.81901795,4614.2,4614.1,0.2934]
[1756287532103,5.81901795,4614.2,4614.1,0.7229]
[1756287532916,0.651778,4614.2,4614.1,0.7229]
[1756287533140,3.7,4614.3,4614.1,0.7229]
[1756287533340,2.16717436,4614.4,4614.1,0.7229]
[1756287533550,0.651778,4614.3,4614.2,0.4295]
[1756287533850,3.0,4614.5,4614.4,0.2934]
[1756287534032,3.0,4614.5,4614.4,0.7229]
[1756287534231,3.108,4614.5,4614.4,0.7229]
[1756287534940,0.108,4614.5,4614.4,0.7229]
[1756287535250,3.108,4614.5,4614.4,0.7229]
[1756287535433,0.108,4614.5,4614.4,0.7229]
[1756287535616,2.27508202,4614.5,4614.4,0.7229]
[1756287535816,2.27428202,4614.5,4614.4,0.7229]
[1756287536237,2.92598502,4614.5,4614.4,0.7229]
[1756287536960,3.758903,4614.5,4614.4,0.7229]
[1756287537618,3.758903,4614.5,4613.8,2.18840596]
[1756287537619,3.758903,4614.5,4613.8,0.021]
[1756287537920,3.698,4614.4,4613.8,0.021]
[1756287538125,0.108,4614.2,4613.8,0.69234983]
[1756287538326,0.108,4614.2,4613.8,0.021]
[1756287538530,2.16722292,4614.2,4614.1,0.2962]
[1756287538730,2.16722292,4614.2,4614.1,0.7379]
[1756287539213,2.27522292,4614.2,4614.1,0.7379]
[1756287539848,0.108,4614.2,4614.1,0.7379]
[1756287540024,0.759741,4614.2,4614.1,0.7379]
[1756287540426,0.108,4614.2,4614.1,0.7379]
[1756287540634,0.108,4614.2,4614.1,1.03052741]
[1756287541015,0.108,4614.2,4614.1,0.7379]
[1756287542648,0.108,4614.2,4613.8,0.021]
[1756287542846,2.16736223,4614.0,4613.8,0.021]
[1756287543049,0.108,4613.9,4613.8,0.021]
[1756287543247,2.27536383,4613.9,4613.8,0.021]
[1756287543452,0.5497,4613.9,4613.8,0.3172]
[1756287544322,2.71706383,4613.9,4613.8,0.3172]
[1756287544917,3.01716383,4613.9,4613.8,0.021]
[1756287545444,0.5497,4613.9,4613.8,0.7589]
[1756287549192,0.5497,4613.9,4613.8,0.021]
[1756287549193,9.70816383,4613.9,4613.8,0.021]
[1756287549377,10.17026383,4613.9,4613.8,0.021]
[1756287550163,10.2775476,4613.9,4613.8,0.021]
[1756287551365,10.2775476,4613.9,4613.8,1e-08]
[1756287554173,6.5865476,4613.9,4613.8,1e-08]
[1756287554490,10.2795476,4613.9,4613.8,1e-08]
[1756287555491,6.5865476,4613.9,4613.8,1e-08]
[1756287555790,9.71716383,4613.9,4613.8,1e-08]
[1756287556295,6.71816383,4613.9,4613.8,1e-08]
[1756287556681,9.71816383,4613.9,4613.8,1e-08]
[1756287559497,9.71716383,4613.9,4613.8,1e-08]
[1756287559694,9.41706383,4613.9,4613.8,1e-08]
[1756287559991,9.41506383,4613.9,4613.8,0.29620001]
[1756287560364,9.41426383,4613.9,4613.8,0.29620001]
[1756287561096,5.71626383,4613.9,4613.8,0.29620001]
[1756287561404,9.41326383,4613.9,4613.8,0.73790001]
[1756287561617,5.71626383,4613.9,4613.8,0.73790001]
[1756287561906,9.41326383,4613.9,4613.8,0.73790001]
[1756287562477,5.71626383,4613.9,4613.8,0.73790001]
[1756287562878,9.41326383,4613.9,4613.8,0.73790001]
[1756287564172,6.41126383,4613.9,4613.8,0.73790001]
[1756287564811,0.5489,4613.9,4613.8,0.73790001]
[1756287565074,0.5489,4613.9,4613.8,2.90531082]
[1756287565274,0.5489,4613.9,4613.8,3.1958419]
[1756287565507,0.4409,4613.9,4613.8,3.1958419]
[1756287565812,0.108,4614.1,4614.0,2.16731686]
[1756287566312,0.108,4614.1,4614.0,2.90521686]
[1756287570177,0.108,4614.3,4614.1,2.16725881]
[1756287570419,0.108,4614.3,4614.2,1.06611588]
[1756287570598,0.108,4614.3,4614.2,3.2333388]
[1756287572614,0.002,4614.4,4614.3,2.16717595]
[1756287572799,0.002,4614.4,4614.3,2.63037595]
[1756287573003,0.002,4614.4,4614.3,3.48282742]
[1756287573299,0.002,4614.4,4614.3,3.50449917]
[1756287573813,0.002,4614.4,4614.3,7.19449917]
[1756287574028,0.002,4614.4,4614.3,7.17282742]
[1756287578081,0.002,4614.4,4614.3,3.48282742]
[1756287578287,0.002,4614.4,4614.3,7.16882742]
[1756287580088,0.002,4614.4,4614.3,6.70562742]
[1756287580491,0.2961,4614.4,4614.3,2.16717595]
[1756287581122,0.002,4614.4,4614.3,2.16717595]
[1756287583645,0.002,4614.4,4614.3,2.47957595]
[1756287584144,0.002,4614.4,4614.3,2.94277595]
[1756287584841,0.0012,4614.4,4614.3,2.94277595]
[1756287585051,0.0012,4614.4,4614.3,4.02883015]
[1756287590414,0.0012,4614.4,4614.3,3.25323015]
[1756287590613,0.0012,4614.4,4614.3,1.0860542]
[1756287592860,0.0012,4614.4,4614.3,3.25323015]
[1756287593966,0.0012,4614.4,4614.3,3.56563015]
[1756287594121,0.0012,4614.4,4614.3,4.02883015]
[1756287597365,0.0012,4614.4,4614.3,4.0505019]
[1756287597681,0.02,4614.8,4614.7,2.1669881]
[1756287597883,0.02,4614.8,4614.7,9.92549496]
[1756287598033,0.02,4614.8,4614.7,10.64162508]
[1756287599538,0.002,4614.9,4614.8,2.16694114]
[1756287599741,1e-08,4615.0,4614.9,5.16689419]
[1756287599945,1e-08,4615.0,4614.9,11.48157434]
[1756287600250,1e-08,4615.5,4615.4,2.16665944]
[1756287600457,1e-08,4615.5,4615.4,16.69198581]
[1756287600653,1e-08,4615.5,4615.4,17.40811922]